[Event "Swiss Championship 2024"]
[Site "Flims"]
[Date "2024.07.17"]
[Round "5.5"]
[White "Georgiadis, Nico"]
[Black "Baenziger, Fabian"]
[Result "1/2-1/2"]
[ECO "A20"]
[WhiteElo "2512"]
[BlackElo "2410"]
[Annotator "TA"]
[PlyCount "61"]
[EventDate "2024.07.10"]
[EventType "tourn"]
[EventCountry "SUI"]
[SourceTitle "playchess.com"]
[Source "ChessBase"]
[SourceQuality "1"]
[TimeControl "40/5400+30:1800+30"]

{[%evp 13,61,18,20,0,16,14,14,-10,18,0,12,0,0,-9,-10,-14,0,-14,0,-6,-18,-20,-18,-13,-4,-8,0,-10,0,0,0,0,0,0,8,0,0,0,0,0,0,0,0,0,0,0,0,-1,0,-3]} 1. c4 {[%emt 0:00:04]} e5 {[%emt 0:00:19]} 2. g3 {[%emt 0:00:13]} Nf6 {[%emt 0:00:18]} 3. Bg2 {[%emt 0:00:05]} c6 {[%emt 0:00:35]} 4. d4 {[%emt 0:00:23]} Bb4+ {[%emt 0:02:51]} 5. Bd2 {[%emt 0:02:55]} Bxd2+ {[%emt 0:00:06]} 6. Qxd2 {[%emt 0:00:44]} d6 {[%emt 0:00:06]} 7. Nc3 {[%emt 0:09:50]} O-O {[%emt 0:00:07] Die Stellung ist ausgeglichen.} 8. dxe5 {[%emt 0:14:33]} dxe5 {[%emt 0:00:29]} 9. Qxd8 {[%emt 0:00:39]} Rxd8 {[%emt 0:00:05]} 10. Nf3 {[%emt 0:00:07]} Re8 {[%emt 0:13:15]} 11. O-O-O {[%emt 0:09:01]} Na6 {[%emt 0:06:06]} 12. h3 {[%emt 0:04:05]} Nc5 {[%emt 0:04:26]} 13. Ne1 {[%emt 0:03:56]} Be6 {[%emt 0:07:12]} 14. b3 {[%emt 0:02:31]} a5 {[%emt 0:02:53]} 15. Nd3 {[%emt 0:04:15]} Nfd7 {[%emt 0:05:43]} 16. Nxc5 {[%emt 0:13:54]} Nxc5 {[%emt 0:00:34]} 17. Ne4 {[%emt 0:00:05]} Nxe4 {[%emt 0:00:27]} 18. Bxe4 {[%emt 0:00:06]} Kf8 {[%emt 0:04:48]} 19. h4 {[%emt 0:02:10]} h6 {[%emt 0:00:50]} 20. Rd2 {[%emt 0:01:41]} Red8 {[%emt 0:04:30]} 21. Rxd8+ {[%emt 0:00:31]} Rxd8 {[%emt 0:00:03]} 22. Rd1 {[%emt 0:00:13]} Rxd1+ {[%emt 0:00:21]} 23. Kxd1 $11 {[%emt 0:00:04][%mdl 4096] Endspiel. KB-KB} a4 {[%emt 0:00:37]} 24. Kd2 {[%emt 0:00:35]} axb3 {[%emt 0:00:05]} 25. axb3 {[%emt 0:00:07]} Ke7 {[%emt 0:00:13]} 26. e3 {[%emt 0:00:25]} Kd6 {[%emt 0:00:06]} 27. Kc3 {[%emt 0:00:05]} b6 {[%emt 0:00:27]} 28. Bc2 {[%emt 0:00:41]} Bd7 {[%emt 0:00:15]} 29. Be4 {[%emt 0:00:15]} Be6 {[%emt 0:00:04]} 30. Bc2 {[%emt 0:00:04]} Bd7 {[%emt 0:00:03]} 31. Be4 {[%emt 0:31:43] Hier war wenig los.   Gewichteter Fehlerwert: Weiß=0.05 (makellos) /Schwarz=0.05 (makellos) .  Ungenau:       	---       	Schwarz=1     OK:         	Weiß=9     	Schwarz=5} 1/2-1/2

[Event "Swiss Championship 2024"]
[Site "Flims"]
[Date "2024.07.18"]
[Round "6.1"]
[White "Bogner, Sebastian"]
[Black "Baenziger, Fabian"]
[Result "1/2-1/2"]
[ECO "C11"]
[WhiteElo "2547"]
[BlackElo "2410"]
[Annotator "TA"]
[PlyCount "131"]
[EventDate "2024.07.10"]
[EventType "tourn"]
[EventCountry "SUI"]
[SourceTitle "playchess.com"]
[Source "ChessBase"]
[SourceQuality "1"]
[TimeControl "40/5400+30:1800+30"]

{[%evp 23,131,35,29,28,37,38,68,46,48,54,70,57,43,18,21,13,20,14,17,16,15,18,12,25,37,33,91,91,87,82,94,89,91,90,100,61,61,61,61,3,61,61,61,61,61,61,61,20,26,0,61,61,61,61,72,71,116,70,60,0,64,7,64,64,64,36,41,34,62,63,69,48,64,48,71,71,71,64,56,0,64,50,53,34,50,49,50,49,60,49,61,60,89,0,0,0,0,0,0,0,0,0,0,0,0,0,0,0,91,69]} 1. e4 {[%emt 0:00:05]} e6 {[%emt 0:00:13]} 2. d4 {[%emt 0:00:12]} d5 {[%emt 0:00:04]} 3. Nc3 {[%emt 0:00:04]} Nf6 {[%emt 0:00:43]} 4. e5 {[%emt 0:00:35]} Nfd7 {[%emt 0:00:04]} 5. f4 {[%emt 0:00:27]} c5 {[%emt 0:00:06]} 6. Nf3 {[%emt 0:00:03]} Nc6 {[%emt 0:00:19]} 7. Be3 {[%emt 0:00:05]} a6 {[%emt 0:00:33]} 8. Ne2 {[%emt 0:00:43] C11: French: Classical System: 4 e5 and 4 Bg5 dxe4.} Qb6 {[%emt 0:00:16]} 9. Qc1 {[%emt 0:00:35]} cxd4 {[%emt 0:01:47]} 10. Nexd4 {[%emt 0:01:43]} Nxd4 {[%emt 0:00:50]} 11. Nxd4 {[%emt 0:13:06]} f6 {[%emt 0:03:06]} 12. exf6 {[%emt 0:02:28]} Nxf6 {[%emt 0:00:05]} 13. c3 $146 {[%emt 0:03:06]} ({Predecessor:} 13. Be2 Bc5 14. c3 Qc7 15. O-O O-O 16. Bf3 Bd6 17. Qd2 e5 18. fxe5 Bxe5 19. h3 {½-½ Kraemer,M (2561)-Prusikin,M (2516) SUI-chT Switzerland 2023 (3.1)}) 13... Qc7 {[%emt 0:09:44]} 14. g3 {[%emt 0:09:36]} Bd6 {[%emt 0:08:17]} 15. Bg2 {[%emt 0:02:08]} O-O {[%emt 0:03:50]} 16. O-O {[%emt 0:00:44]} e5 {[%emt 0:08:44]} 17. fxe5 {[%emt 0:00:52]} Bxe5 {[%emt 0:00:04]} 18. Bf4 {[%emt 0:13:42]} Bd7 {[%emt 0:02:08]} 19. Qd2 {[%emt 0:16:27]} Rae8 {[%emt 0:08:44]} 20. Rae1 {[%emt 0:00:49]} Ne4 {[%emt 0:10:02]} 21. Bxe5 {[%emt 0:04:55]} Rxf1+ {[%emt 0:00:35]} 22. Rxf1 {[%emt 0:00:07]} Qxe5 {[%emt 0:00:20]} 23. Qf4 {[%emt 0:03:02]} (23. Qe2 {simplifies} Nf6 24. Qxe5 Rxe5 25. Rd1) 23... Nd6 {[%emt 0:09:38]} 24. Qf3 {[%emt 0:03:42]} Bc6 {[%emt 0:00:07] [#]} (24... Qe4 $14) 25. Bh3 $1 $16 {[%emt 0:01:48]} Qe7 {[%emt 0:04:42]} 26. Be6+ {[%emt 0:02:28]} Kh8 {[%emt 0:00:04]} 27. Bxd5 {[%emt 0:02:41]} Bxd5 {[%emt 0:00:04]} 28. Qxd5 {[%emt 0:00:05]} b5 {[%emt 0:00:27]} 29. Nf5 {[%emt 0:07:15]} Nxf5 {[%emt 0:00:06]} 30. Qxf5 {[%emt 0:00:11]} h6 {[%emt 0:00:19]} 31. a3 {[%emt 0:02:14]} ({White should try} 31. Qd3 $14) 31... Qd6 {[%emt 0:03:12]} (31... Qe3+ $11 32. Qf2 Qe6) 32. Rf2 $14 {[%emt 0:01:21]} Qc6 {[%emt 0:00:26]} 33. Qf3 {[%emt 0:00:41]} Qe6 {[%emt 0:01:36]} 34. Kg2 {[%emt 0:00:45]} Qc4 {[%emt 0:00:42]} 35. Qf7 {[%emt 0:01:29]} Qc6+ {[%emt 0:01:18]} 36. Qf3 {[%emt 0:01:19]} Qc4 $1 {[%emt 0:00:04]} 37. Qf5 {[%emt 0:01:23]} Qc6+ {[%emt 0:04:04]} 38. Kh3 $1 {[%emt 0:00:29]} Qc4 {[%emt 0:04:22]} 39. Rd2 {[%emt 0:01:00]} Kg8 {[%emt 0:05:39]} 40. Rd4 {[%emt 0:03:53]} (40. Rd6 $16) 40... Qc6 $14 {[%emt 0:07:53]} 41. Rd2 {[%emt 0:07:26]} (41. Rd5 $14) 41... Rf8 {[%emt 0:04:40]} (41... Qc4 $1 $11) 42. Qg4 {[%emt 0:02:01]} (42. Qd5+ Qxd5 43. Rxd5 Rf2 $15) ({White should play} 42. Qe5 $14) 42... Qf6 {[%emt 0:00:41]} (42... Kh8 $11) 43. Qe2 $1 $14 {[%emt 0:00:29]} Qc6 {[%emt 0:02:13]} 44. Qd3 {[%emt 0:01:57]} Kh8 {[%emt 0:02:24]} 45. Re2 {[%emt 0:00:34]} Qc8+ {[%emt 0:00:22]} 46. Kg2 {[%emt 0:00:16]} Qc6+ {[%emt 0:00:16]} 47. Kg1 {[%emt 0:03:01]} Qf6 {[%emt 0:02:49]} 48. Rd2 {[%emt 0:00:12]} Qf7 {[%emt 0:02:48]} 49. Kg2 {[%emt 0:01:08]} Qf6 {[%emt 0:00:21]} 50. Qe2 {[%emt 0:04:13]} Qc6+ {[%emt 0:03:36]} 51. Kh3 {[%emt 0:00:35]} Kg8 {[%emt 0:03:58]} 52. Rd4 {[%emt 0:01:04]} Re8 {[%emt 0:03:30]} 53. Qg4 {[%emt 0:01:23]} Qf6 {[%emt 0:00:11]} 54. Rf4 {[%emt 0:00:25]} Qe5 {[%emt 0:00:07]} 55. Rf2 {[%emt 0:00:40]} Qd5 {[%emt 0:00:18]} 56. Re2 {[%emt 0:05:31]} Re5 {[%emt 0:00:25]} 57. Rxe5 {[%emt 0:02:11]} Qxe5 {[%emt 0:00:04]} 58. a4 {[%emt 0:01:48]} (58. Qf3 $16) 58... bxa4 $11 {[%emt 0:01:49]} 59. Qxa4 {[%emt 0:00:18]} Qh5+ {[%emt 0:01:40]} 60. Qh4 {[%emt 0:00:17]} Qf5+ {[%emt 0:00:03]} 61. Qg4 {[%emt 0:04:17]} Qf1+ {[%emt 0:00:06]} 62. Kh4 {[%emt 0:00:01]} Qf6+ {[%emt 0:00:25]} 63. Kh3 {[%emt 0:00:19]} Qf1+ {[%emt 0:00:05]} 64. Kh4 {[%emt 0:00:03]} Qf6+ {[%emt 0:00:10]} 65. Kh3 {[%emt 0:04:33]} Qe5 (65... Qf1+ $11 66. Kh4) 66. Qd1 {[%emt 0:00:30]} 1/2-1/2

[Event "Swiss Championship 2024"]
[Site "Flims"]
[Date "2024.07.18"]
[Round "6.2"]
[White "Fischer, Daniel"]
[Black "Georgiadis, Nico"]
[Result "0-1"]
[ECO "B51"]
[WhiteElo "2372"]
[BlackElo "2512"]
[Annotator "TA"]
[PlyCount "86"]
[EventDate "2024.07.10"]
[EventType "tourn"]
[EventCountry "SUI"]
[SourceTitle "playchess.com"]
[Source "ChessBase"]
[SourceQuality "1"]
[TimeControl "40/5400+30:1800+30"]

{[%evp 13,86,21,20,4,31,22,25,34,50,0,0,-11,-23,-24,-8,-12,0,-14,0,0,29,-16,-20,-33,-30,-29,-30,-41,-24,-31,-23,-26,-22,-27,-42,-36,0,-7,0,-68,-59,-130,-91,-230,-203,-291,-308,-289,-314,-305,-263,-281,-273,-243,-98,-142,-51,-78,-61,-201,-200,-210,-192,-488,-512,-510,-497,-503,-491,-492,-494,-1024,-1010,-899,-702]} 1. e4 {[%emt 0:00:04]} c5 {[%emt 0:00:07]} 2. Nf3 {[%emt 0:00:05]} d6 {[%emt 0:00:06]} 3. Bb5+ {[%emt 0:00:19]} Nd7 {[%emt 0:00:07]} 4. O-O {[%emt 0:00:30]} a6 {[%emt 0:00:08]} 5. Bd3 {[%emt 0:00:41]} Ngf6 {[%emt 0:00:14]} 6. c3 {[%emt 0:00:38] B51: Sicilian: Moscow Variation (3 Bb5+) without 3...Bd7.} e5 {[%emt 0:01:11]} 7. Bc2 {[%emt 0:01:59]} c4 {[%emt 0:00:29]} 8. d4 $146 {[%emt 0:13:29]} ({Predecessor:} 8. Qe2 b5 9. a4 Bb7 10. axb5 axb5 11. Rxa8 Qxa8 12. Na3 Bxe4 13. Nxb5 Qb7 14. Bxe4 Qxe4 {0-1 Lahav,M (2178)-Greenfeld,A (2513) Netanya op 2019 (9)}) 8... cxd3 {[%emt 0:00:06]} 9. Qxd3 {[%emt 0:00:15]} b5 {[%emt 0:02:02]} 10. Qe2 {[%emt 0:07:19]} Bb7 {[%emt 0:06:47]} 11. Nbd2 {[%emt 0:01:30]} (11. Rd1 $14) 11... Be7 $11 {[%emt 0:00:52]} 12. a4 {[%emt 0:02:21]} O-O {[%emt 0:03:26]} 13. Re1 {[%emt 0:00:23]} Qb6 {[%emt 0:09:59]} 14. Nf1 {[%emt 0:09:38]} Nc5 {[%emt 0:17:56]} 15. a5 {[%emt 0:03:24]} Qc7 {[%emt 0:01:19]} 16. Ng3 {[%emt 0:00:12]} h6 {[%emt 0:07:10]} 17. Bd2 {[%emt 0:04:42]} Rfe8 {[%emt 0:01:17]} 18. b4 {[%emt 0:02:05]} Ne6 {[%emt 0:07:53]} 19. Rac1 {[%emt 0:01:29]} Nf4 {[%emt 0:01:55]} 20. Qf1 {[%emt 0:06:45]} Bf8 {[%emt 0:14:20]} 21. Bb3 {[%emt 0:06:05]} d5 {[%emt 0:04:24]} 22. exd5 $1 {[%emt 0:03:16]} e4 {[%emt 0:01:28]} 23. Bxf4 {[%emt 0:09:13]} Qxf4 {[%emt 0:00:06]} 24. Nd4 {[%emt 0:00:28]} Nxd5 {[%emt 0:02:32]} 25. Nxb5 {[%emt 0:08:37]} Rac8 {[%emt 0:03:31]} 26. Nd4 {[%emt 0:03:02]} ({White should play} 26. Rcd1 $11 Re5 (26... Nxc3 $2 27. Nxc3 Rxc3 28. Ne2 $18) 27. Bxd5 Bxd5 28. Nd4 (28. Ne2 Qf6 $15)) 26... Nxc3 $15 {[%emt 0:01:43]} (26... Rxc3 27. Nge2 Rxc1 28. Nxf4 Rxe1 29. Qxe1 $16 (29. Nxd5 $2 Rxf1+ 30. Kxf1 Rd8 $19)) 27. Nc2 {[%emt 0:06:30]} (27. Rxc3 $15 Rxc3 28. Nde2) 27... Bd6 {[%emt 0:05:48]} 28. Re3 {[%emt 0:04:08]} (28. Bc4 $17 {was necessary.}) 28... h5 {[%emt 0:01:16]} 29. Qe1 {[%emt 0:01:11]} (29. Bc4 $142 Nd5 30. Bxd5 Bxd5 31. Qd1) 29... h4 $19 {[%emt 0:00:49]} 30. Nf1 {[%emt 0:00:25]} Qf6 {[%emt 0:00:29]} 31. g3 {[%emt 0:01:38]} h3 {[%emt 0:00:22]} 32. Nd2 {[%emt 0:00:31]} Bb8 {[%emt 0:01:47]} 33. Nc4 {[%emt 0:01:43] [#]} Nb5 {[%emt 0:03:00]} (33... Nd5 $1 $19 {[%cal Ob8a7] ...Ba7! is the strong threat.} 34. Qf1 Nxe3 35. N2xe3 Ba7) 34. Qf1 {[%emt 0:00:54]} Qf5 {[%emt 0:00:55]} ({Black should try} 34... Ba7 $17 {White must now prevent ...Red8.} 35. Nb6 Bxb6 36. axb6 Red8 (36... Qxb6 37. Rd1 $17)) 35. Rd1 {[%emt 0:00:30]} Rcd8 {[%emt 0:00:12]} 36. Qe2 {[%emt 0:00:56]} ({Better is} 36. Ree1 $15) 36... Qf6 $19 {[%emt 0:00:57]} 37. Re1 {[%emt 0:00:42]} Bd5 {[%emt 0:01:12]} 38. Qh5 $2 {[%emt 0:00:25]} (38. Nb6 Bxb3 39. Rxb3) 38... Ba7 $19 {[%emt 0:00:50]} 39. Qxh3 {[%emt 0:01:09]} Bxe3 {[%emt 0:00:14]} 40. N2xe3 {[%emt 0:00:05]} Nd4 {[%emt 0:00:46]} 41. Nxd5 {[%emt 0:05:28]} Nf3+ {[%emt 0:01:57]} ({Less strong is} 41... Rxd5 42. Bd1 $19) 42. Kf1 {[%emt 0:01:13]} (42. Kh1 $142 Rxd5 43. Rd1) 42... Rxd5 $19 {[%emt 0:00:07]} 43. Rc1 {[%emt 0:01:58]} g6 {[%emt 0:04:45]} 0-1

[Event "Swiss Championship 2024"]
[Site "Flims"]
[Date "2024.07.18"]
[Round "6.3"]
[White "Peng, Li Min"]
[Black "Klauser, Markus"]
[Result "1-0"]
[ECO "C54"]
[WhiteElo "2562"]
[BlackElo "2358"]
[Annotator "TA"]
[PlyCount "93"]
[EventDate "2024.07.10"]
[EventType "tourn"]
[EventCountry "SUI"]
[SourceTitle "playchess.com"]
[Source "ChessBase"]
[SourceQuality "1"]
[TimeControl "40/5400+30:1800+30"]

{[%evp 20,93,-39,-49,-28,-59,50,31,33,50,131,122,138,102,116,133,130,137,178,150,164,168,183,194,175,180,185,179,187,188,188,170,240,236,236,231,367,364,437,435,465,477,538,543,520,528,535,535,634,632,604,553,572,560,581,581,581,581,581,581,575,575,1015,986,977,965,1100,1002,29975,29976,29969,29970,29969,29970,29975,11525]} 1. e4 {[%emt 0:00:06]} e5 {[%emt 0:00:09]} 2. Nf3 {[%emt 0:00:06]} Nc6 {[%emt 0:00:06]} 3. Bc4 {[%emt 0:00:20]} Bc5 {[%emt 0:00:19]} 4. c3 {[%emt 0:00:07]} Nf6 {[%emt 0:00:05]} 5. d4 {[%emt 0:00:12]} exd4 {[%emt 0:00:06]} 6. b4 {[%emt 0:00:04] C54: Giuoco Piano: 4 c3 Nf6, main lines with 5 d4 and 5 d3.} Bb6 {[%emt 0:03:19]} 7. e5 {[%emt 0:00:05]} d5 {[%emt 0:00:33]} 8. exf6 {[%emt 0:00:06]} dxc4 {[%emt 0:00:10]} 9. Qe2+ {[%emt 0:00:05]} Be6 {[%emt 0:00:26]} 10. b5 {[%emt 0:00:05]} Na5 {[%emt 0:08:19]} 11. fxg7 {[%emt 0:00:08]} Rg8 {[%emt 0:00:05]} 12. cxd4 {[%emt 0:00:04]} Rxg7 {[%emt 0:05:07]} (12... Bxd4 13. Nxd4 Qxd4 14. Bb2 $14) (12... Qd7 $1 $15 13. O-O O-O-O) 13. Nc3 $14 {[%emt 0:00:06] 13.0-0 injects fresh life into this line.} Bxd4 {[%emt 0:06:16]} (13... Rxg2 14. Kf1 Bxd4 15. Kxg2 $16) 14. Bb2 $1 {[%emt 0:00:05]} (14. Nxd4 Qxd4 15. Bb2 Rxg2 $15) 14... c5 {[%emt 0:01:36]} (14... Rxg2 15. O-O-O c5 (15... Rxf2 $2 16. Rxd4 Rxe2 17. Rxd8+ Rxd8 18. Nxe2 $18) 16. bxc6 Rxf2 (16... Nxc6 $2 17. Nxd4 Qg5+ 18. Kb1 $18) 17. Rxd4 Rxe2 18. Rxd8+ Rxd8 19. c7 $16 (19. Nxe2 Nxc6 20. Nfd4 Nb4 $16)) ({Black should play} 14... Bf6 $14 15. Rd1 Qe7) 15. Rd1 $146 {[%emt 0:02:23]} (15. O-O Qe7 $11) ({Predecessor:} 15. bxc6 Nxc6 16. O-O-O Rg4 17. g3 Rxg3 18. Nxd4 Rg2 19. Qe3 Nxd4 20. Rd3 Qg5 21. Rxd4 Qxe3+ 22. fxe3 {1-0 Campos Jimenez,A (2263)-Karthi,J (2120) Sunnyvale 1000 GM Thanksgiving IM1 2023 (4)}) 15... Rxg2 {[%emt 0:05:50]} 16. Ne4 {[%emt 0:23:00]} c3 {[%emt 0:03:32]} 17. Nxd4 {[%emt 0:00:21]} cxd4 {[%emt 0:06:46]} 18. Bxc3 {[%emt 0:00:05]} dxc3 {[%emt 0:02:11]} 19. Rxd8+ {[%emt 0:00:05]} Rxd8 {[%emt 0:00:06] [#]} 20. Qc2 $1 {[%emt 0:25:50]} (20. Nxc3 $6 Nc4 $14) 20... Rd4 {[%emt 0:09:12]} 21. Nf6+ {[%emt 0:00:03]} Ke7 {[%emt 0:02:47]} 22. Qxc3 {[%emt 0:00:04]} Rc4 {[%emt 0:00:59]} 23. Qa3+ {[%emt 0:00:04]} (23. Qxa5 $6 Kxf6 24. Ke2 Rc2+ 25. Ke3 Rcxf2 $11) 23... Kxf6 {[%emt 0:03:53]} 24. Qf3+ {[%emt 0:00:04]} (24. Qxa5 $2 {too greedy.} Rc1+ 25. Ke2 Rxh1 $19) 24... Bf5 {[%emt 0:00:50]} 25. Qxg2 {[%emt 0:00:02]} Be4 {[%emt 0:00:55]} (25... Rc1+ $142 26. Kd2 Rc2+ 27. Kd1 Nc4) 26. Qg8 $1 $18 {[%emt 0:00:04]} (26. f3 $2 Rc1+ 27. Kf2 Rc2+ 28. Kg1 Rxg2+ 29. Kxg2 Bd5 $19) 26... Bxh1 {[%emt 0:03:14]} 27. Qd8+ {[%emt 0:00:03]} ({Not} 27. Qxh7 Re4+ 28. Kd2 Nc4+ 29. Kc3 Nd6 $17) 27... Ke6 {[%emt 0:05:00]} (27... Kf5 $142) 28. Qxa5 $18 {[%emt 0:00:07]} Bd5 {[%emt 0:06:00]} 29. Qxa7 {[%emt 0:00:20]} Rb4 {[%emt 0:02:13]} 30. a4 {[%emt 0:02:38]} Ke5 {[%emt 0:03:02]} 31. Kd2 {[%emt 0:00:08]} Rb2+ {[%emt 0:02:04]} 32. Kc3 {[%emt 0:00:35]} Rb3+ {[%emt 0:00:09]} 33. Kc2 {[%emt 0:00:07]} Rb4 {[%emt 0:01:17]} 34. Qb8+ {[%emt 0:01:58]} Ke4 {[%emt 0:03:45]} 35. Qg3 {[%emt 0:01:02]} Rc4+ {[%emt 0:00:54]} 36. Kb2 {[%emt 0:00:05]} Rb4+ {[%emt 0:00:52]} 37. Ka3 {[%emt 0:00:06]} Rc4 {[%emt 0:00:53]} 38. Qe3+ {[%emt 0:00:27]} Kf5 {[%emt 0:00:08]} 39. Qd3+ {[%emt 0:00:20]} Ke5 {[%emt 0:00:26]} 40. Qxh7 {[%emt 0:00:43]} b6 {[%emt 0:01:42]} 41. Qh8+ {[%emt 0:30:38]} Ke4 {[%emt 0:30:37]} 42. h4 {[%emt 0:00:30]} Kd3 {[%emt 0:03:26]} 43. h5 {[%emt 0:01:22]} Rc3+ {[%emt 0:02:04]} 44. Qxc3+ {[%emt 0:00:19]} (44. Kb2 Rb3+ 45. Kc1 Rb4 46. Qh7+ Be4 47. Qxf7 Ke2 48. Qa2+ (48. Qe6 $2 Rb1#) 48... Kf1 $18) 44... Kxc3 {[%emt 0:00:06]} 45. h6 {[%emt 0:00:04]} Be4 {[%emt 0:01:10]} 46. f3 {[%emt 0:00:03]} Bd3 {[%emt 0:01:03] [#]} 47. a5 $1 {[%emt 0:00:03]} 1-0

[Event "Swiss Championship 2024"]
[Site "Flims"]
[Date "2024.07.18"]
[Round "6.4"]
[White "Stijve, Theo"]
[Black "Georgiadis, Ioannis"]
[Result "1/2-1/2"]
[ECO "C47"]
[WhiteElo "2328"]
[BlackElo "2483"]
[Annotator "TA"]
[PlyCount "66"]
[EventDate "2024.07.10"]
[EventType "tourn"]
[EventCountry "SUI"]
[SourceTitle "playchess.com"]
[Source "ChessBase"]
[SourceQuality "1"]
[TimeControl "40/5400+30:1800+30"]

{[%evp 15,66,0,0,5,4,0,0,-12,0,0,0,-17,-27,-28,0,0,2,10,46,0,0,5,33,40,28,0,0,0,9,-35,-25,-25,-32,-15,-10,-101,-62,-63,-22,-69,-41,-35,0,0,0,0,0,0,0,0,0,0,0]} 1. e4 {[%emt 0:00:03]} e5 {[%emt 0:00:20]} 2. Nf3 {[%emt 0:00:08]} Nc6 {[%emt 0:00:03]} 3. d4 {[%emt 0:00:09]} exd4 {[%emt 0:00:15]} 4. Nxd4 {[%emt 0:00:10]} Nf6 {[%emt 0:00:31]} 5. Nc3 {[%emt 0:00:14]} Bb4 {[%emt 0:00:31]} 6. Nxc6 {[%emt 0:00:11]} bxc6 {[%emt 0:00:09]} 7. Bd3 {[%emt 0:00:06]} O-O {[%emt 0:02:06]} 8. O-O {[%emt 0:00:12]} Re8 {[%emt 0:00:44]} 9. Re1 {[%emt 0:04:49]} d6 {[%emt 0:03:11]} 10. h3 {[%emt 0:11:10]} Nd7 {[%emt 0:04:39]} 11. Qh5 {[%emt 0:08:28]} Ne5 {[%emt 0:12:54]} 12. Bf1 {[%emt 0:06:26]} Qf6 {[%emt 0:12:32]} 13. f4 {[%emt 0:06:26] Dodges h6} Ng6 {[%emt 0:05:33]} 14. Qf3 {[%emt 0:02:36]} Bb7 {[%emt 0:04:57]} 15. Bd2 {[%emt 0:13:57]} Rab8 {[%emt 0:06:52]} 16. g3 {[%emt 0:04:09]} d5 {[%emt 0:04:12]} 17. Bg2 {[%emt 0:06:08]} dxe4 {[%emt 0:10:40]} 18. Rxe4 {[%emt 0:15:22]} c5 {[%emt 0:03:43]} 19. Rxe8+ {[%emt 0:02:37]} Rxe8 {[%emt 0:00:04]} 20. Qf2 {[%emt 0:01:38]} Bxg2 {[%emt 0:00:36]} 21. Kxg2 {[%emt 0:00:16]} Qf5 {[%emt 0:00:55]} 22. a3 {[%emt 0:01:46]} Bxc3 {[%emt 0:00:12]} 23. Bxc3 {[%emt 0:00:31]} h5 {[%emt 0:00:04][%cal Oh5h4]} 24. Rf1 {[%emt 0:02:57]} Re4 {[%emt 0:00:55][%cal Oh5h4]} 25. Be5 {[%emt 0:03:01]} c6 {[%emt 0:13:42]} 26. Bb8 {[%emt 0:04:37][%cal Of1d1] White is weak on the light squares} a5 {[%emt 0:01:26]} (26... h4 $5 27. Rd1 hxg3 28. Kxg3 Kh7 $17) 27. c3 {[%emt 0:00:44]} (27. Qf3 $11) 27... Ne7 {[%emt 0:02:38]} 28. Re1 {[%emt 0:01:00]} Nd5 {[%emt 0:00:26]} (28... Rxe1 {simplifies} 29. Qxe1 Qd5+ 30. Kh2 Nf5) 29. Qc2 $1 {[%emt 0:03:29] The position is equal.} Nxf4+ {[%emt 0:06:40]} 30. Bxf4 {[%emt 0:00:52]} Rxf4 {[%emt 0:00:07]} 31. Re8+ {[%emt 0:00:42]} Kh7 {[%emt 0:00:04]} 32. Qxf5+ {[%emt 0:00:17]} Rxf5 {[%emt 0:00:04]} 33. Rc8 {[%emt 0:00:37]} f6 {[%emt 0:02:04] Weighted Error Value: White=0.15 (very precise) /Black=0.12 (very precise) .  Mistake:       	White=2     	---        Inaccurate:     	White=3     	Black=7      OK:         	White=11    	Black=8      Strong:       	White=1     	---} 1/2-1/2